[Event "US Masters 2024"]
[Site "Charlotte"]
[Date "2024.11.29"]
[Round "3.16"]
[White "Kaplan, Avi Harrison"]
[Black "Rahul Srivatshav P"]
[Result "1/2-1/2"]
[ECO "A38"]
[WhiteElo "2317"]
[BlackElo "2494"]
[Annotator "TA"]
[PlyCount "28"]
[EventDate "2024.09.23"]
[EventType "swiss"]
[EventCountry "USA"]
[SourceTitle "playchess.com"]
[Source "ChessBase"]
[SourceQuality "1"]
[TimeControl "5400+30"]

{[%evp 21,28,31,32,15,25,9,6,-28,-18]} 1. Nf3 {[%emt 0:00:03]} Nf6 {[%emt 0:15:53]} 2. b3 {[%emt 0:00:09]} g6 {[%emt 0:02:33]} 3. Bb2 {[%emt 0:00:05]} Bg7 {[%emt 0:00:07]} 4. g3 {[%emt 0:00:04]} c5 {[%emt 0:09:00]} 5. c4 {[%emt 0:00:23]} Nc6 {[%emt 0:08:47]} 6. Bg2 {[%emt 0:01:04]} O-O {[%emt 0:00:55]} 7. O-O {[%emt 0:00:10]} d6 {[%emt 0:00:07]} 8. d4 {[%emt 0:00:03]} cxd4 {[%emt 0:00:39]} 9. Nxd4 {[%emt 0:00:12]} Bd7 {[%emt 0:00:11]} 10. Nc3 {[%emt 0:00:04]} a6 {[%emt 0:01:42]} 11. Nc2 {[%emt 0:00:11]} Qa5 {[%emt 0:08:30]} 12. a4 {[%emt 0:01:02]} Qh5 {[%emt 0:04:57]} 13. Ne3 {[%emt 0:08:44]} Bh3 {[%emt 0:08:06]} 14. Qd2 {[%emt 0:13:59]} Bxg2 {[%emt 0:02:08] An uneventful encounter.   Weighted Error Value: White=0.23 (precise) /Black=0.03 (flawless) .  Inaccurate:     	White=1     	---        OK:         	---       	Black=2} 1/2-1/2

[Event "US Masters 2024"]
[Site "Charlotte"]
[Date "2024.11.29"]
[Round "3.17"]
[White "Samant Aditya S"]
[Black "Campos Gomez, Manuel"]
[Result "1-0"]
[ECO "B40"]
[WhiteElo "2478"]
[BlackElo "2293"]
[Annotator "TA"]
[PlyCount "51"]
[EventDate "2024.09.23"]
[EventType "swiss"]
[EventCountry "USA"]
[SourceTitle "playchess.com"]
[Source "ChessBase"]
[SourceQuality "1"]
[TimeControl "5400+30"]

{[%evp 11,51,4,4,0,17,6,12,1,31,0,-7,-13,-21,-39,49,0,32,28,139,145,149,171,180,149,149,163,474,454,443,392,390,378,366,365,365,374,382,382,640,512,1012,1000]} 1. e4 {[%emt 0:00:02]} c5 {[%emt 0:03:41]} 2. Nf3 {[%emt 0:00:08]} e6 {[%emt 0:00:05]} 3. d4 {[%emt 0:00:03]} cxd4 {[%emt 0:00:06]} 4. Nxd4 {[%emt 0:00:04]} Nf6 {[%emt 0:00:08]} 5. Bd3 {[%emt 0:03:37]} Nc6 {[%emt 0:00:13]} 6. Nxc6 {[%emt 0:00:07]} bxc6 {[%emt 0:00:20]} 7. Bf4 {[%emt 0:00:11]} d5 {[%emt 0:03:11]} 8. Nd2 {[%emt 0:00:33]} Be7 {[%emt 0:04:25]} 9. O-O {[%emt 0:04:51] The position is equal.} Qb6 {[%emt 0:03:25]} 10. Re1 {[%emt 0:08:25]} Qxb2 {[%emt 0:09:08]} 11. c4 {[%emt 0:07:53]} O-O {[%emt 0:22:33]} 12. Rb1 {[%emt 0:08:48]} Qd4 {[%emt 0:05:05]} (12... Qxa2 $15 13. Qf3 Qa5) 13. Qc2 {[%emt 0:05:57]} (13. Nb3 $14 Qb6 14. e5) 13... dxe4 {[%emt 0:06:03]} 14. Nxe4 {[%emt 0:00:26]} Ba6 {[%emt 0:00:56] [#]} (14... Nh5 $11 15. Bd2 Rd8) 15. Be3 $1 $16 {[%emt 0:06:12]} Qd7 {[%emt 0:07:31]} 16. Nxf6+ {[%emt 0:11:01]} Bxf6 {[%emt 0:01:14]} 17. Bxh7+ {[%emt 0:00:26]} Kh8 {[%emt 0:00:01]} 18. Be4 {[%emt 0:00:40] aiming for Qa4. White is more active.} Bb7 $2 {[%emt 0:11:50]} (18... Rfb8 {is tougher.} 19. Qa4 Qc8) 19. Qb3 {[%emt 0:02:57]} Rfb8 {[%emt 0:00:05]} 20. Bxa7 {[%emt 0:00:07]} Rxa7 {[%emt 0:00:04]} 21. Qh3+ {[%emt 0:00:06]} Kg8 {[%emt 0:00:03][%cal Od7c7,Bh8g8,Bg8f8,Bf8e7][%mdl 32] [#] White must now prevent ...Qc7!} 22. Qh7+ {[%emt 0:00:05]} Kf8 {[%emt 0:00:02][%cal Of8e7] And now ...Ke7! would win.} 23. Qh8+ {[%emt 0:00:06]} Ke7 {[%emt 0:00:03]} 24. Qxb8 {[%emt 0:00:05]} Bd4 $2 {[%emt 0:00:11]} (24... Bc8 25. Bxc6 Qc7 26. Qb4+ Qd6) 25. Red1 {[%emt 0:03:48] Threatens to win with Qxa7.} Ba8 {[%emt 0:00:05]} (25... Bc8 $142 26. c5 (26. Bxc6 Bxf2+ 27. Kxf2 Rxa2+ 28. Kg1 Qxc6 $18) 26... e5 27. Bxc6 Qc7) 26. c5 {[%emt 0:01:33] Weighted Error Value: White=0.26 (precise) /Black=0.76.  Mistake:       	White=1     	Black=5      Inaccurate:     	White=1     	Black=2      OK:         	White=4     	Black=5      Best:        	White=3     	Black=1      Strong:       	White=1     	---} 1-0

[Event "US Masters 2024"]
[Site "Charlotte"]
[Date "2024.11.29"]
[Round "3.18"]
[White "Morefield, Jason"]
[Black "Escalante Ramirez, Brian"]
[Result "0-1"]
[ECO "C50"]
[WhiteElo "2235"]
[BlackElo "2476"]
[Annotator "TA"]
[PlyCount "76"]
[EventDate "2024.09.23"]
[EventType "swiss"]
[EventCountry "USA"]
[SourceTitle "playchess.com"]
[Source "ChessBase"]
[SourceQuality "1"]
[TimeControl "5400+30"]

{[%evp 9,76,7,52,21,15,14,19,17,50,50,59,51,43,0,0,-11,27,38,14,7,29,10,32,27,101,0,0,0,0,-16,-20,-123,-116,-126,-116,-150,-134,-152,-116,-100,-88,-85,-97,-79,-88,-188,-193,-182,-181,-170,-167,-250,-227,-252,-251,-242,-214,-206,-195,-208,-201,-187,-190,-352,-314,-720,-724,-729,-720]} 1. e4 {[%emt 0:00:33]} e5 {[%emt 0:11:02]} 2. Nf3 {[%emt 0:00:13]} Nc6 {[%emt 0:00:03]} 3. Bc4 {[%emt 0:00:24]} Bc5 {[%emt 0:00:03]} 4. c3 {[%emt 0:00:16]} d6 {[%emt 0:00:02]} 5. O-O {[%emt 0:01:26]} Qf6 {[%emt 0:00:03]} 6. a4 {[%emt 0:03:08] b4 is the strong threat.} a5 {[%emt 0:01:50]} 7. Na3 {[%emt 0:02:25]} Bg4 {[%emt 0:00:27]} 8. Nb5 {[%emt 0:00:17] The position is equal.} O-O-O {[%emt 0:00:04]} (8... Bxf3 {simplifies} 9. Qxf3 Qxf3 10. gxf3 Bb6) 9. Be2 $1 {[%emt 0:06:54][%cal Ob2b4]} Nge7 {[%emt 0:02:45]} 10. d3 {[%emt 0:01:06]} (10. h3 $5 h5 11. d3 $14 (11. hxg4 hxg4 12. Ne1 Qf4 $11)) 10... h5 {[%emt 0:09:36]} 11. Kh1 {[%emt 0:04:10]} (11. h3 {looks sharper.} Kb8 12. b4 axb4 13. a5) 11... Kb8 {[%emt 0:03:36]} 12. Ng5 {[%emt 0:05:56]} Bxe2 {[%emt 0:09:13]} 13. Qxe2 {[%emt 0:00:06]} Ng6 {[%emt 0:00:03]} 14. Nh3 {[%emt 0:06:56] Bg5 would now be deadly.} Qe6 {[%emt 0:15:39]} (14... Qe7 {simplifies} 15. Be3 d5 16. exd5 Rxd5 17. Bxc5 Rxc5 18. f4 Nxf4 19. Nxf4 exf4 20. Qxe7 Nxe7 21. Rxf4 Rf5) 15. f4 {[%emt 0:13:50]} Qg4 {[%emt 0:00:08]} 16. Qc2 {[%emt 0:03:10]} f6 {[%emt 0:04:55] [#]} (16... Qd7 $11) 17. Bd2 {[%emt 0:09:01]} (17. d4 $1 $16 {[%cal Rd4c5]} exd4 18. f5) 17... d5 $11 {[%emt 0:02:58] aiming for ...dxe4.} 18. fxe5 {[%emt 0:04:33]} fxe5 $40 {[%emt 0:00:04][%mdl 128] Black is up to no good.} ({Much worse is} 18... Ncxe5 $6 19. exd5 Bb6 (19... Rxd5 20. d4 $16) 20. c4 $16) 19. Rae1 {[%emt 0:05:03][%cal Od3d4]} Rhf8 {[%emt 0:03:16] And now ...Rxf1+ would win.} 20. Bc1 {[%emt 0:02:34] [#]} (20. Bg5 $11 {keeps the balance.} Rxf1+ 21. Rxf1) 20... dxe4 $1 $17 {[%emt 0:01:34]} 21. dxe4 {[%emt 0:00:27]} Nf4 {[%emt 0:03:31] Black has more active pieces.} 22. Bxf4 {[%emt 0:02:16]} exf4 {[%emt 0:00:02]} 23. Qe2 {[%emt 0:02:54]} Ne5 {[%emt 0:02:07]} 24. Qxg4 {[%emt 0:02:33]} Nxg4 {[%emt 0:05:55]} 25. Nd4 {[%emt 0:03:11]} Bxd4 {[%emt 0:00:02]} 26. cxd4 {[%emt 0:00:08]} Rxd4 {[%emt 0:00:05][%cal Og4e5]} 27. Rxf4 {[%emt 0:01:58]} (27. Kg1 $17) 27... Re8 $19 {[%emt 0:01:25]} 28. b3 {[%emt 0:01:54]} Rb4 {[%emt 0:00:25]} 29. Rf3 {[%emt 0:06:09]} Rexe4 {[%emt 0:01:36]} ({Much less strong is} 29... Rbxe4 30. Ref1 $17) 30. Rc1 {[%emt 0:00:41]} (30. Rxe4 $142 Rxe4 31. Kg1) 30... Re3 {[%emt 0:01:23]} 31. Rxe3 {[%emt 0:00:30]} Nxe3 {[%emt 0:00:01][%mdl 4096] Endgame. KRN-KRN} 32. Rc3 {[%emt 0:00:11]} Nf5 {[%emt 0:00:23] Hoping for ...Nd4.} 33. Rc5 {[%emt 0:02:30]} Nd4 {[%emt 0:02:16]} 34. Rxa5 {[%emt 0:00:12]} Nxb3 {[%emt 0:00:46]} 35. Rxh5 {[%emt 0:01:06]} c5 {[%emt 0:01:29][%cal Oc5c4]} 36. Nf2 $2 {[%emt 0:02:25]} (36. Kg1) 36... c4 {[%emt 0:02:01]} 37. Rh3 {[%emt 0:02:39]} (37. Rh8+ Kc7 38. Ne4) 37... Nc5 {[%emt 0:04:35] ( -> ...Rb1+)} 38. g4 {[%emt 0:00:29]} Rb3 {[%emt 0:01:01] Weighted Error Value: White=0.36/Black=0.12 (very precise) .  Mistake:       	White=6     	Black=1      Inaccurate:     	White=1     	Black=2      OK:         	White=9     	Black=15     Best:        	White=2     	---        Strong:       	White=1     	Black=1} 0-1

[Event "US Masters 2024"]
[Site "Charlotte"]
[Date "2024.11.29"]
[Round "3.19"]
[White "Preotu, Razvan"]
[Black "Studen, Damir"]
[Result "1-0"]
[ECO "B01"]
[WhiteElo "2475"]
[BlackElo "2052"]
[Annotator "TA"]
[PlyCount "49"]
[EventDate "2024.09.23"]
[EventType "swiss"]
[EventCountry "USA"]
[SourceTitle "playchess.com"]
[Source "ChessBase"]
[SourceQuality "1"]
[TimeControl "5400+30"]

{[%evp 16,49,87,75,79,72,112,122,175,166,150,156,181,179,187,166,442,443,435,412,545,527,1239,1244,1221,1135,2321,2320,29993,29994,29994,29995,29995,29996,29996,29997]} 1. e4 {[%emt 0:02:06]} d5 {[%emt 0:08:56]} 2. exd5 {[%emt 0:00:15]} Qxd5 {[%emt 0:00:31]} 3. Nc3 {[%emt 0:00:14]} Qa5 {[%emt 0:00:12]} 4. d4 {[%emt 0:00:11]} c6 {[%emt 0:00:10]} 5. Bc4 {[%emt 0:00:37]} Nf6 {[%emt 0:01:53]} 6. Nf3 {[%emt 0:00:14]} Bf5 {[%emt 0:00:26]} 7. Ne5 {[%emt 0:00:33]} e6 {[%emt 0:00:48]} 8. g4 {[%emt 0:00:10]} Be4 {[%emt 0:00:37]} 9. O-O {[%emt 0:00:34]} Bd5 {[%emt 0:00:16]} 10. Bd3 {[%emt 0:00:33]} Nfd7 {[%emt 0:07:43]} 11. f4 {[%emt 0:01:54]} Qb6 {[%emt 0:05:23]} (11... Bb4 $16 {might work better.}) 12. Be3 $18 {[%emt 0:01:28] Hoping for Na4. Active counter play!} Qc7 {[%emt 0:25:35]} 13. Qe2 {[%emt 0:04:05]} Bd6 {[%emt 0:05:13]} 14. g5 {[%emt 0:06:58]} g6 {[%emt 0:16:11]} 15. Rae1 {[%emt 0:07:02]} Bb4 $2 {[%emt 0:04:35] [#]} (15... O-O {was called for.} 16. Qg4 Qd8) 16. Nxf7 $1 {[%emt 0:16:19][%mdl 512]} Kxf7 {[%emt 0:04:29] [#]} 17. f5 $1 {[%emt 0:00:35][%mdl 512]} exf5 {[%emt 0:05:13] [#]} (17... gxf5 18. Nxd5) 18. Bxf5 $1 {[%emt 0:04:58][%mdl 512]} Rf8 {[%emt 0:04:00]} (18... gxf5 19. Rxf5+) 19. Nxd5 {[%emt 0:04:48]} cxd5 {[%emt 0:00:17]} 20. Bf4 {[%emt 0:02:14]} ({Weaker is} 20. Bxd7+ Kg7 21. Rxf8 Qxd7 $18) 20... Qb6 {[%emt 0:03:48]} 21. Be6+ {[%emt 0:01:43] This pair of bishops is nice.} Ke8 {[%emt 0:00:11] [#]} 22. Bf7+ $1 {[%emt 0:00:15][%mdl 512] White mates.} Kxf7 {[%emt 0:00:20][%cal Be8f7,Bf7g8,Bg8g7][%mdl 32]} 23. Bd6+ {[%emt 0:00:05]} (23. Bxb8+ $2 {is the wrong capture.} Kg8 24. Rxf8+ Nxf8 $19) 23... Kg8 {[%emt 0:01:01]} 24. Qe6+ {[%emt 0:00:07]} Kg7 {[%emt 0:00:55]} 25. Qe7+ {[%emt 0:00:09] White took control after the opening.   Weighted Error Value: White=0.02 (flawless) /Black=0.94.  Mistake:       	---       	Black=2      Inaccurate:     	---       	Black=3      OK:         	White=8     	Black=2      Best:        	---       	Black=1      Brilliant:      	White=1     	---} 1-0

[Event "US Masters 2024"]
[Site "Charlotte"]
[Date "2024.11.29"]
[Round "3.20"]
[White "Gedajlovic, Max"]
[Black "Liang, Awonder"]
[Result "0-1"]
[ECO "E90"]
[WhiteElo "2377"]
[BlackElo "2687"]
[Annotator "TA"]
[PlyCount "152"]
[EventDate "2024.09.23"]
[EventType "swiss"]
[EventCountry "USA"]
[SourceTitle "playchess.com"]
[Source "ChessBase"]
[SourceQuality "1"]
[TimeControl "5400+30"]

{[%evp 58,152,33,18,14,18,13,21,15,14,60,0,0,0,0,0,0,0,0,0,0,0,0,0,0,0,0,0,0,0,0,0,0,0,0,-7,0,-8,-8,-8,0,0,0,0,0,0,0,0,0,0,0,0,0,0,0,0,0,0,0,0,0,0,0,0,0,0,0,0,0,-8,-8,-8,-8,-8,-8,-17,-18,-123,-118,-469,-463,-433,-414,-614,-599,-550,-550,-1228,-1201,-1191,-1184,-1036,-974,-889,-560,-504,-471]} 1. d4 {[%emt 0:01:16]} Nf6 {[%emt 0:00:01]} 2. c4 {[%emt 0:00:14]} g6 {[%emt 0:00:01]} 3. Nc3 {[%emt 0:01:33]} Bg7 {[%emt 0:00:07]} 4. e4 {[%emt 0:00:13]} d6 {[%emt 0:00:01]} 5. h3 {[%emt 0:00:27]} O-O {[%emt 0:00:08]} 6. Be3 {[%emt 0:00:08]} Na6 {[%emt 0:00:04]} 7. Nf3 {[%emt 0:06:37]} c6 {[%emt 1:33:38]} 8. Bd3 {[%emt 0:01:40]} e5 {[%emt 0:00:00]} 9. O-O {[%emt 0:03:26]} exd4 {[%emt 0:00:00]} 10. Bxd4 {[%emt 0:00:47]} Re8 {[%emt 0:00:00]} 11. Re1 {[%emt 0:00:51]} Nc5 {[%emt 0:00:00]} 12. Bc2 {[%emt 0:01:18]} Qa5 {[%emt 0:00:00]} 13. Qd2 {[%emt 0:07:21]} Ncd7 {[%emt 0:00:00]} 14. Bd3 {[%emt 0:29:10]} Ne5 {[%emt 0:00:00]} 15. Be2 {[%emt 0:05:35]} Be6 {[%emt 0:00:00]} 16. Nxe5 {[%emt 0:03:20]} dxe5 {[%emt 0:00:00]} 17. Be3 {[%emt 0:00:02]} Nd7 {[%emt 0:00:00]} 18. a3 {[%emt 0:03:48]} Qc7 {[%emt 0:00:00]} 19. c5 {[%emt 0:00:53]} f5 {[%emt 0:00:00]} 20. f3 {[%emt 0:01:52]} f4 {[%emt 0:00:00]} 21. Bf2 {[%emt 0:00:04]} Bf8 {[%emt 0:00:00]} 22. b4 {[%emt 0:00:23]} Nf6 {[%emt 0:00:00]} 23. Qc2 {[%emt 0:01:44]} g5 {[%emt 0:00:00]} 24. Nd1 {[%emt 0:00:35]} h5 {[%emt 0:00:00]} 25. Bc4 {[%emt 0:00:46]} Qg7 {[%emt 0:00:00]} 26. Kh1 {[%emt 0:04:13]} g4 {[%emt 0:00:00]} 27. Bh4 {[%emt 0:04:33]} Kh8 {[%emt 0:00:00]} 28. Bxe6 {[%emt 0:01:26]} Rxe6 {[%emt 0:00:00]} 29. Nf2 {[%emt 0:00:22]} Nh7 {[%emt 0:00:00]} 30. fxg4 {[%emt 0:01:26]} (30. hxg4 hxg4 31. Nxg4 Rh6 $15) 30... Be7 {[%emt 0:00:00]} 31. Bxe7 {[%emt 0:00:40]} Rxe7 {[%emt 0:00:00]} 32. Rad1 {[%emt 0:02:17]} Nf6 {[%emt 0:00:00]} 33. Qe2 {[%emt 0:01:43]} Rg8 {[%emt 0:00:00]} (33... hxg4 $11 34. hxg4 (34. Nxg4 Nxg4 35. Qxg4 Qxg4 $16) 34... Qg5) 34. Rd6 {[%emt 0:03:00]} (34. Rd3 $1 $14) 34... hxg4 $11 {[%emt 0:00:00]} 35. Nxg4 {[%emt 0:01:10]} Nxg4 {[%emt 0:00:00]} 36. Qxg4 {[%emt 0:00:03]} Qxg4 {[%emt 0:00:00]} 37. hxg4 {[%emt 0:00:24]} Rxg4 {[%emt 0:00:00]} 38. Red1 {[%emt 0:01:32]} Kg8 {[%emt 0:00:00]} 39. R1d3 {[%emt 0:01:42]} ({Don't take} 39. Rd8+ $6 Kf7 $14) 39... Reg7 {[%emt 0:00:00]} 40. Rd8+ {[%emt 0:00:48]} Kh7 $1 {[%emt 0:00:00]} 41. Re8 {[%emt 0:03:07]} Rxg2 {[%emt 0:00:00]} 42. Rh3+ {[%emt 0:01:16]} Kg6 {[%emt 0:00:00]} 43. Kxg2 {[%emt 0:03:55]} Kf7+ {[%emt 0:00:00]} 44. Kf2 {[%emt 0:00:06]} Kxe8 {[%emt 0:00:00]} 45. Rh5 {[%emt 0:00:03]} Re7 {[%emt 0:00:00]} 46. Kf3 {[%emt 0:01:10]} Kf7 {[%emt 0:04:55]} 47. Rh6 {[%emt 0:01:45]} Rd7 {[%emt 0:01:15]} 48. Kg4 {[%emt 0:01:55]} Kf8 {[%emt 0:01:18]} 49. Rh8+ {[%emt 0:00:56]} Kg7 {[%emt 0:00:05]} 50. Rh5 {[%emt 0:01:04]} Rf7 {[%emt 0:00:33]} 51. Kf3 $1 {[%emt 0:00:43]} (51. Rxe5 $2 {loses.} f3 52. Rg5+ Kf8 $19) 51... Kf6 {[%emt 0:00:06]} 52. Rh6+ {[%emt 0:00:23]} Ke7 {[%emt 0:00:03]} 53. Rh5 {[%emt 0:00:06]} Ke6 {[%emt 0:00:03]} 54. Rh6+ {[%emt 0:00:07]} Kd7 {[%emt 0:01:42]} 55. Rh5 {[%emt 0:00:12]} Re7 {[%emt 0:00:02]} 56. a4 {[%emt 0:00:13]} a6 {[%emt 0:03:27]} 57. Rg5 {[%emt 0:00:12]} Ke8 {[%emt 0:00:30]} 58. Rh5 {[%emt 0:00:19]} Kf8 {[%emt 0:00:16]} 59. Rf5+ {[%emt 0:00:48]} Ke8 {[%emt 0:00:01]} 60. Rh5 {[%emt 0:00:02]} Kf7 {[%emt 0:00:09]} 61. Rh6 {[%emt 0:01:21]} Rd7 {[%emt 0:00:13]} 62. Kg4 {[%emt 0:00:47]} Kf8 {[%emt 0:00:17]} 63. Rh8+ {[%emt 0:00:31]} Kg7 {[%emt 0:00:02]} 64. Rh5 {[%emt 0:00:27]} Re7 {[%emt 0:00:01]} 65. Kf3 {[%emt 0:00:52]} Kf6 {[%emt 0:00:04]} 66. Rh6+ {[%emt 0:00:53]} Kg5 {[%emt 0:00:07]} 67. Rd6 {[%emt 0:00:06]} (67. Rh8 $1 $11 {was the only way to keep the balance.}) 67... Rh7 $17 {[%emt 0:00:04]} 68. Re6 $2 {[%emt 0:00:17][%mdl 8192]} (68. Kg2 $17 {nothing else works.}) 68... Rh3+ $19 {[%emt 0:00:05]} 69. Kf2 {[%emt 0:00:06]} Rb3 {[%emt 0:00:06]} 70. b5 {[%emt 0:01:35]} (70. Rxe5+ $142 Kg4 71. Re7 Rb2+ (71... Rxb4 72. Rg7+ Kh5 73. Kf3 $18) 72. Kg1 Rxb4 73. Kh2) 70... axb5 $19 {[%emt 0:01:04]} 71. axb5 {[%emt 0:00:01]} Rxb5 {[%emt 0:00:28]} 72. Rxe5+ {[%emt 0:00:14]} Kg4 {[%emt 0:00:01]} 73. Rf5 {[%emt 0:01:27]} Rb2+ {[%emt 0:00:40]} 74. Ke1 {[%emt 0:00:01]} Rb4 {[%emt 0:00:10]} 75. Rf7 {[%emt 0:00:31]} Rxe4+ {[%emt 0:00:11]} 76. Kf2 {[%emt 0:00:04]} Rb4 {[%emt 0:00:05]} 0-1

[Event "US Masters 2024"]
[Site "Charlotte"]
[Date "2024.11.29"]
[Round "3.21"]
[White "Tari, Aryan"]
[Black "De Silva, L M S T"]
[Result "1/2-1/2"]
[ECO "C84"]
[WhiteElo "2628"]
[BlackElo "2370"]
[Annotator "TA"]
[PlyCount "41"]
[EventDate "2024.09.23"]
[EventType "swiss"]
[EventCountry "USA"]
[SourceTitle "playchess.com"]
[Source "ChessBase"]
[SourceQuality "1"]
[TimeControl "5400+30"]

{[%evp 20,41,27,0,26,34,38,36,31,33,36,33,48,31,35,40,39,0,0,0,0,0,0,0]} 1. e4 {[%emt 0:03:34]} e5 {[%emt 0:00:24]} 2. Nf3 {[%emt 0:00:37]} Nc6 {[%emt 0:00:09]} 3. Bb5 {[%emt 0:00:05]} a6 {[%emt 0:00:52]} 4. Ba4 {[%emt 0:00:02]} Nf6 {[%emt 0:00:24]} 5. O-O {[%emt 0:00:10]} b5 {[%emt 0:00:26]} 6. Bb3 {[%emt 0:00:02]} Be7 {[%emt 0:00:11]} 7. d3 {[%emt 0:00:22]} O-O {[%emt 0:02:57]} 8. a4 {[%emt 0:01:36]} Rb8 {[%emt 0:04:31]} 9. axb5 {[%emt 0:00:35]} axb5 {[%emt 0:00:06]} 10. Nc3 {[%emt 0:00:51][%cal Bb1c3,Bc3e2,Be2g3,Bg3h5][%mdl 32]} d6 {[%emt 0:03:35]} 11. h3 {[%emt 0:00:18]} h6 {[%emt 0:06:42]} 12. Be3 {[%emt 0:01:17]} Re8 {[%emt 0:02:24]} 13. Qd2 {[%emt 0:06:08][%cal Oe3h6]} Be6 {[%emt 0:11:09] White is slightly better.} 14. Bxe6 {[%emt 0:05:22]} fxe6 {[%emt 0:00:21]} 15. Ne2 {[%emt 0:00:05]} Qd7 {[%emt 0:03:45]} 16. Ng3 {[%emt 0:04:33]} Ra8 {[%emt 0:05:19]} 17. c3 {[%emt 0:10:03]} Na5 {[%emt 0:06:14] [#] ...Nb3 would now be deadly.} 18. Bxh6 {[%emt 0:16:00][%cal Ob2b4] b4! is the strong threat.} Nh7 {[%emt 0:30:59] The position is equal.} 19. Ra3 {[%emt 0:08:16][%cal Og3h5] Hoping for Nh5!} gxh6 {[%emt 0:01:56]} 20. Qxh6 {[%emt 0:02:52] aiming for Rfa1.} Nc6 $1 {[%emt 0:01:43]} 21. Nh5 {[%emt 0:16:38] Weighted Error Value: White=0.09 (flawless) /Black=0.04 (flawless) .  Inaccurate:     	White=1     	---        OK:         	White=3     	Black=2      Best:        	---       	Black=1      Strong:       	---       	Black=1} 1/2-1/2

[Event "US Masters 2024"]
[Site "Charlotte"]
[Date "2024.11.29"]
[Round "3.22"]
[White "Stefanov, Emil"]
[Black "Durarbayli, Vasif"]
[Result "0-1"]
[ECO "D46"]
[WhiteElo "2362"]
[BlackElo "2626"]
[Annotator "TA"]
[PlyCount "64"]
[EventDate "2024.09.23"]
[EventType "swiss"]
[EventCountry "USA"]
[SourceTitle "playchess.com"]
[Source "ChessBase"]
[SourceQuality "1"]
[TimeControl "5400+30"]

{[%evp 15,64,0,15,2,29,17,22,12,17,18,28,38,47,0,-22,-20,0,-64,12,11,43,33,41,10,37,0,10,10,0,11,26,20,15,5,8,0,64,-486,-492,-520,-515,-509,-461,-985,-953,-1161,-1101,-1677,-1513,-6120,-6116]} 1. d4 {[%emt 0:00:05]} Nf6 {[%emt 0:00:31]} 2. c4 {[%emt 0:00:10]} e6 {[%emt 0:00:35]} 3. Nf3 {[%emt 0:00:15]} d5 {[%emt 0:00:09]} 4. Nc3 {[%emt 0:00:40]} c6 {[%emt 0:00:39]} 5. e3 {[%emt 0:00:35]} Nbd7 {[%emt 0:00:55]} 6. Qc2 {[%emt 0:00:10]} Bd6 {[%emt 0:00:19]} 7. Bd3 {[%emt 0:00:14]} dxc4 {[%emt 0:00:33]} 8. Bxc4 {[%emt 0:00:06]} b5 {[%emt 0:00:26]} 9. Bd3 {[%emt 0:00:10]} Bb7 {[%emt 0:01:48]} 10. e4 {[%emt 0:01:02] Black must now prevent e5.} e5 $1 {[%emt 0:00:32]} 11. Bg5 {[%emt 0:00:15] The position is equal.} h6 {[%emt 0:09:17]} 12. Bh4 {[%emt 0:00:21]} Qc7 {[%emt 0:01:05]} 13. O-O-O {[%emt 0:05:52]} O-O {[%emt 0:01:00]} 14. Rhf1 {[%emt 0:07:45]} (14. Kb1 $14) 14... exd4 $11 {[%emt 0:14:15]} 15. Nxd4 {[%emt 0:00:20]} Be5 {[%emt 0:01:05]} 16. Nde2 {[%emt 0:06:45]} ({Better is} 16. Nf3 $11) 16... Bxc3 {[%emt 0:11:00]} ({Don't play} 16... Bxh2 $6 17. f4 $14) (16... b4 $1 $15 17. f4 bxc3 18. fxe5 cxb2+ 19. Qxb2 Ng4 (19... Qxe5 20. Bxf6 gxf6 21. Ng3 $11)) 17. Qxc3 {[%emt 0:01:29]} c5 {[%emt 0:00:21]} 18. Bxb5 {[%emt 0:03:40] f3 would now be deadly.} Bxe4 {[%emt 0:01:35]} 19. f3 {[%emt 0:17:26]} (19. Qg3 {is more complex.} Qb7 20. Nc3 Rab8 21. Rd6) 19... Bh7 {[%emt 0:01:12]} 20. Bg3 {[%emt 0:01:21]} Qb7 {[%emt 0:01:22]} 21. Qb3 {[%emt 0:14:38] And now Bxd7 would win.} c4 {[%emt 0:04:36]} 22. Bxc4 {[%emt 0:00:12] A strong pair of Bishops.} (22. Qxc4 $2 {loses.} Rac8 23. Nc3 Rxc4 $19) 22... Qc8 {[%emt 0:05:15]} 23. Nc3 $1 {[%emt 0:00:30]} Nc5 {[%emt 0:01:42]} 24. Qa3 {[%emt 0:10:34] Black is weak on the dark squares} Qf5 $1 {[%emt 0:01:42]} 25. Rf2 {[%emt 0:00:04] Inhibits Qc2+.} Rfc8 {[%emt 0:09:47]} (25... Rac8 $11) 26. Rfd2 $2 {[%emt 0:05:51][%mdl 8192] [#] Now White is beyond hope.} (26. Rdd2 $14 {stays ahead.}) 26... Nd5 $1 $19 {[%emt 0:03:13][%mdl 512] ...Nxc3 is the strong threat. Black is clearly winning.} 27. Bd3 {[%emt 0:06:38]} (27. Nxd5 $2 Qb1#) (27. Bxd5 $2 {gets mated.} Nb3+ 28. axb3 Qb1#) (27. Qa5 Bg6) 27... Nxd3+ {[%emt 0:04:05]} 28. Rxd3 {[%emt 0:00:05]} Qg5+ {[%emt 0:01:51]} 29. f4 {[%emt 0:03:07]} (29. R3d2 $142 Nxc3 30. bxc3) 29... Nxf4 {[%emt 0:01:57]} 30. Bxf4 {[%emt 0:00:06]} Qxf4+ {[%emt 0:00:50]} 31. R3d2 {[%emt 0:00:13]} Rab8 {[%emt 0:02:02]} 32. Re1 {[%emt 0:05:39] Dodges Qe3} Rd8 {[%emt 0:01:42] Weighted Error Value: White=1.05/Black=0.15 (very precise) .  Loses game:     	White=1     	---        Mistake:       	White=3     	Black=2      Inaccurate:     	White=2     	Black=3      OK:         	White=6     	Black=5      Best:        	White=1     	Black=2      Strong:       	White=1     	Black=2      Brilliant:      	---       	Black=1} 0-1